Cogmind - Beta 17.1 @@@ ROGUE MODE // 2026.09.08 @ 12:09:14 Player: SunShine214 Result: Destroyed by Superfortress with Concept Helical Railcannon Performance ------------- Evolutions (8) 4000 Regions Visited (18) 3600 Robots Destroyed (252) 1260 Value Destroyed (12243) 12243 Prototype IDs (34) 680 Alien Tech Used (0) 0 Bonus (7012) 7012 TOTAL SCORE: 28795 Bonus ------- High Alert Combat Kills 2736 Follower Combat Kills 1507 Entered Garrisons 800 Used RIF Installer 2000 Friendly Fire -31 Cogmind --------- Core Integrity 0/1450 Matter 261/300 Energy 7/100 System Corruption 27% Temperature Cool (8) Movement Treading (61) Location -2/Protoforge Parts ------- > --- POWER (2) -------- (None) > --- PROPULSION (6) --- Treaded Armored-Cooled Exoskeleton > --- UTILITY (10) ----- Hacking Suite Ghost Barrier > --- WEAPON (5) ------- (None) > --- INVENTORY (5) ---- Faulty Enhanced Armored Heavy Treads Improved Q-thruster Advanced Remote Datajack Peak State ------------ > --- POWER ------------ Multi-Quantum Reactor > --- PROPULSION ------- Treaded Armored-Cooled Exoskeleton > --- UTILITY ---------- Armored Scrap Engine High-capacity Storage Unit Enhanced Optical Array Advanced Targeting Computer Hacking Suite Advanced Hacking Suite Ghost Barrier Relay Coupler [NC] Relay Coupler [Sentry] > --- WEAPON ----------- Advanced Remote Datajack Hpw. Kinetic Helical Construct/C Energy Nova Construct/C Hyp. Ballistic Coil Construct/C Ionic Axe > --- INVENTORY -------- Enhanced Armored Heavy Treads Experimental Biometal Medium Treads Improved Q-thruster High-capacity Storage Unit Improved Energy Well Improved Core Shielding Relay Coupler [Grunt] Relay Coupler [Demolisher] Advanced Drone Bay Enhanced Gamma Bomb Array Improved Remote Datajack Advanced Remote Datajack Advanced Remote Datajack Improved Plasma Cutter Dual-blade Saw [Rating: 161] Favorites ----------- Power Constructs Engine Cooled Ion Engine Reactor Constructs Propulsion Constructs Treads Constructs Flight Unit Improved VTOL Module Utility High-capacity Storage Unit Device Armored Scrap Engine Storage High-capacity Storage Unit Processor Enhanced Optical Array Hackware Hacking Suite Protection Light Armor Plating Weapon Constructs Energy Gun Heavy Particle Gun Energy Cannon Constructs Ballistic Gun Enhanced Autogun Ballistic Cannon Constructs Launcher Tesla Bomb Launcher Special Weapon Improved Remote Datajack Impact Weapon Hammer Slashing Weapon Ionic Axe Piercing Weapon Spear Build | -11 -10 -9 -8 -8 -8 -6 -6 -5 -5 -5 -4 -4 -4 -3 -3 -2 -2 -2 ------- Run | Yrd Mat Mat Mat Sto Rec Fac Gar Fac Gar Fac Fac Gar Fac Res Gar Res Tes Frg Slots Evolved 16 | . . 2 2 . . 4 . 2 . . 2 . . 2 . 2 . . Power 1 | . . . . . . . . . . . 1 . . . . . . . Propulsion 4 | . . . 1 . . 1 . 1 . . . . . . . 1 . . Utility 8 | . . 2 1 . . 2 . . . . 1 . . 1 . 1 . . Weapon 3 | . . . . . . 1 . 1 . . . . . 1 . . . . Parts Attached 129 | 7 5 22 1 19 7 5 10 . 2 9 4 7 7 3 9 9 1 2 Power 6 | 1 . 3 . 1 . . . . . . . . . . . . . 1 Engine 6 | 1 . 3 . 1 . . . . . . . . . . . . . 1 Core . | . . . . . . . . . . . . . . . . . . . Reactor . | . . . . . . . . . . . . . . . . . . . Propulsion 17 | 2 . 7 . 5 3 . . . . . . . . . . . . . Treads 15 | 2 . 6 . 4 3 . . . . . . . . . . . . . Leg . | . . . . . . . . . . . . . . . . . . . Wheel . | . . . . . . . . . . . . . . . . . . . Hover . | . . . . . . . . . . . . . . . . . . . Flight 2 | . . 1 . 1 . . . . . . . . . . . . . . Utility 72 | 2 2 7 1 3 4 5 10 . 1 5 3 7 5 3 5 7 1 1 Device 14 | 1 . 1 . . 1 1 6 . . . . . 1 1 2 . . . Storage 8 | 1 2 1 . . 1 . 1 . . . 1 . 1 . . . . . Processor 3 | . . . . . . . 1 . . 1 . . . . 1 . . . Hackware 31 | . . 1 . 1 . . 1 . 1 4 2 7 3 1 1 7 1 1 Protection 16 | . . 4 1 2 2 4 1 . . . . . . 1 1 . . . Artifact . | . . . . . . . . . . . . . . . . . . . Weapon 34 | 2 3 5 . 10 . . . . 1 4 1 . 2 . 4 2 . . Energy Gun 10 | 2 . 3 . 5 . . . . . . . . . . . . . . Energy Cannon 5 | . 3 1 . 1 . . . . . . . . . . . . . . Ballistic Gun 1 | . . . . 1 . . . . . . . . . . . . . . Ballistic Cannon . | . . . . . . . . . . . . . . . . . . . Launcher 6 | . . . . 2 . . . . . 2 . . . . 1 1 . . Special Weapon 6 | . . . . . . . . . 1 1 . . 1 . 2 1 . . Impact Weapon 1 | . . 1 . . . . . . . . . . . . . . . . Slashing Weapon 4 | . . . . . . . . . . 1 1 . 1 . 1 . . . Piercing Weapon 1 | . . . . 1 . . . . . . . . . . . . . . Special Melee Weapon . | . . . . . . . . . . . . . . . . . . . Unidentified Prototypes 19 | . . 2 . 8 1 . 3 . . 2 1 . . . . 1 1 . Corrupted Parts 4 | . . . . . . . 1 . . 1 . 1 . . 1 . . . System Corruption 19 | . . . . . . . 9 . . 3 . 6 . . 1 . . . Parts Lost 63 | . . 4 . 6 . . 8 1 5 10 1 . . . 12 1 . 15 Power 6 | . . . . . . . 2 . . . 1 . . . 1 . . 2 Propulsion 5 | . . 1 . 1 . . . . . . . . . . . . . 3 Utility 28 | . . 2 . 3 . . 5 1 2 4 . . . . 5 . . 6 Weapon 24 | . . 1 . 2 . . 1 . 3 6 . . . . 6 1 . 4 Highest Loss Streak 9 | . . 2 . 4 . . 3 1 5 5 1 . . . 4 1 . 9 To Critical Strikes 3 | . . . . . . . . . . . . . . . . . . 3 Average Backups 13 | . 5 16 19 18 17 7 7 17 18 18 11 15 17 16 15 13 14 10 Power . | . . . . . . . . . . . . . . . . . . . Propulsion 4 | . 1 9 11 10 9 2 2 2 2 2 . . 2 3 3 2 2 2 Utility 4 | . 1 2 2 1 . 3 3 12 14 12 8 11 8 7 9 7 5 3 Weapon 2 | . 2 3 5 6 6 1 . 1 1 1 1 2 4 3 1 . 2 1 Tool/Special . | . . . . . . . . . . . . . . . . . . . Unused Backups 60 | . 1 8 3 . 12 3 1 . . 3 3 2 7 2 3 4 . 8 Power . | . . . . . . . . . . . . . . . . . . . Propulsion 25 | . . 3 . . 8 2 . . . 2 2 . 1 . . 4 . 3 Utility 15 | . . 1 1 . . 1 1 . . 1 1 2 3 . 1 . . 3 Weapon 17 | . 1 4 2 . 4 . . . . . . . 2 2 1 . . 1 Tool/Special 3 | . . . . . . . . . . . . . 1 . 1 . . 1 Average Slot Usage (%) 75 | . 100 97 91 92 92 69 70 64 65 57 57 62 63 64 61 55 61 50 Engine 4 | . 14 11 9 9 8 5 1 . . . . . . . . . . . Reactor 1 | . . . . . . . 4 5 5 1 . 3 5 4 4 4 4 1 Treads 10 | . 28 21 27 26 22 . 3 . . . . 2 . . . 1 4 4 Device 7 | . 14 4 . . 2 7 16 7 5 5 5 5 7 9 8 4 4 3 Storage 7 | . 14 11 9 9 9 6 6 5 5 5 5 5 5 4 4 4 4 2 Processor 3 | . . . . . . . 4 5 5 8 10 10 7 4 4 8 8 7 Hackware 9 | . . 10 9 8 9 6 6 11 13 8 14 15 15 15 13 15 20 17 Protection 8 | . . 15 19 21 22 17 4 1 1 1 . . . 1 1 2 . . Energy Gun 7 | . 12 19 18 13 12 6 5 . . . . . . 3 2 1 2 . Energy Cannon 3 | . 15 2 . . 1 10 1 7 9 4 . 1 2 . 2 . 3 3 Ballistic Cannon 2 | . . . . . . . 8 5 3 1 . 3 2 3 . . . 2 Special Weapon 1 | . . . . . . . . . 3 2 5 5 5 4 4 4 4 2 Slashing Weapon 1 | . . . . . . . . . . 2 8 5 5 4 4 4 4 2 Piercing Weapon 1 | . . . . 1 3 . 1 5 1 . . . . . . . . . Peak Build Rating 161 | 7 8 24 29 29 48 62 106 112 113 106 100 140 139 154 157 135 161 161 Average Rating 74 | 5 7 20 26 27 36 56 81 104 106 96 93 115 136 148 141 125 145 123 On Entrance 80 | . 7 8 23 29 29 46 61 103 112 82 91 99 138 136 153 120 124 161 Avg Prop Armor Cover (%) 9 | . . . . . . 9 . . . . . . . . . . . . Naked Turns . | . . . . . . . . . . . . . . . . . . . Heaviest Build 131 | 12 30 60 62 62 60 43 61 69 69 79 65 97 106 131 126 81 94 98 Greatest Support 255 | 40 40 43 63 63 63 52 110 108 108 108 75 157 157 157 157 255 200 200 Greatest Overweight (x) 10 | . . 1 . 1 1 10 1 . . . 1 2 . . . 1 . . Average Overweight (x) . | . . . . . . . . . . . . . . . . . . . Largest Inventory Capacity 20 | 8 15 20 20 20 20 8 20 20 20 20 20 20 20 20 20 20 20 20 Average Capacity 16 | 7 12 18 20 20 19 8 9 20 20 20 20 20 20 20 20 20 20 14 Most Carried 20 | 1 12 20 20 20 20 8 18 18 19 20 16 20 20 20 20 20 17 17 Average Carried 14 | . 5 16 19 18 17 7 7 17 18 18 11 15 19 19 17 15 16 12 Final Capacity 20 | 8 15 20 20 20 8 8 20 20 20 20 20 20 20 20 20 20 20 5 Final Carried 20 | 1 12 20 20 20 8 8 18 17 19 16 10 20 20 19 18 14 17 4 Scrap Engine Consumption 298 | . . . . . 32 22 54 2 1 41 12 40 9 11 39 23 12 . Constructs Created 20 | . . . . . 4 1 2 1 . 4 1 1 . 1 2 . 3 . Constructs Modified 106 | . . . . . 10 3 21 1 . 14 3 17 4 6 6 19 . 2 Class Distribution -------------------- 25% | Mutant 24% | Bothacker-Construct 11% | Commander-Construct 9% | Construct 8% | Bothacker-Mutant 6% | Scavenger-Mutant 4% | Commander-Mutant 3% | Botlord-Mutant 3% | Scavenger-Construct Dominant Class ---------------- Mutant | -10/Materials Mutant | -9/Materials Scavenger-Mutant | -8/Materials Mutant | -8/Storage Mutant | -8/Recycling Commander-Construct | -6/Factory Construct | -6/Garrison Bothacker-Construct | -5/Factory Bothacker-Construct | -5/Garrison Bothacker-Construct | -5/Factory Bothacker-Mutant | -4/Factory Bothacker-Construct | -4/Garrison Bothacker-Construct | -4/Factory Bothacker-Construct | -3/Research Bothacker-Construct | -3/Garrison Botlord-Mutant | -2/Research Hacker-Construct | -2/Testing Hacker-Mutant | -2/Protoforge Resources | -11 -10 -9 -8 -8 -8 -6 -6 -5 -5 -5 -4 -4 -4 -3 -3 -2 -2 -2 ----------- Run | Yrd Mat Mat Mat Sto Rec Fac Gar Fac Gar Fac Fac Gar Fac Res Gar Res Tes Frg Matter Collected 4703 | 270 49 283 20 286 277 138 508 10 48 589 . 918 238 284 440 336 9 . Remotely . | . . . . . . . . . . . . . . . . . . . Salvage Created 13745 | 205 408 1014 120 873 1417 551 3036 130 300 1894 . 1736 418 546 729 368 . . Parts 643 | 17 35 68 . 48 59 25 111 8 21 82 . 67 21 26 33 22 . . Haulers Intercepted 9 | . 2 4 . 2 . . . . . 1 . . . . . . . . Recyclers Shooed 15 | . 1 1 . 4 5 1 . . . . . . 1 . . 2 . . Parts Field Recycled . | . . . . . . . . . . . . . . . . . . . Retrieved Matter . | . . . . . . . . . . . . . . . . . . . Parts Self-Destructed . | . . . . . . . . . . . . . . . . . . . Prevented . | . . . . . . . . . . . . . . . . . . . Parts Restored . | . . . . . . . . . . . . . . . . . . . Kills | -11 -10 -9 -8 -8 -8 -6 -6 -5 -5 -5 -4 -4 -4 -3 -3 -2 -2 -2 ------- Run | Yrd Mat Mat Mat Sto Rec Fac Gar Fac Gar Fac Fac Gar Fac Res Gar Res Tes Frg Combat Hostiles Destroyed 185 | . 11 16 1 17 8 9 42 3 6 34 . 14 5 5 10 4 . . Melee 21 | . . 1 . 2 5 . . . . 4 . . . . 5 4 . . Guns 49 | . 7 14 1 3 3 3 17 . . . . . . 1 . . . . Cannons 72 | . 4 . . . . 5 25 3 6 8 . 10 5 4 2 . . . AOE 32 | . . 1 . 12 . . . . . 17 . 1 . . 1 . . . Classes Destroyed 20 | 3 5 2 . 4 2 1 1 . . . . 1 . . . 1 . . Worker 10 | 1 1 3 . 1 . 2 . . . . . . 1 . . 1 . . Builder 6 | . . 1 . 2 1 . . . . 1 . . . 1 . . . . Tunneler 6 | 5 . 1 . . . . . . . . . . . . . . . . Hauler 9 | . 2 4 . 2 . . . . . 1 . . . . . . . . Recycler 23 | 1 . 2 1 5 12 . . . . . . . . 1 . 1 . . Mechanic 2 | . . . . 1 . . . . . 1 . . . . . . . . Operator 5 | . 2 1 . . . . . 1 . 1 . . . . . . . . Watcher 4 | . 2 1 . . . 1 . . . . . . . . . . . . Swarmer 39 | . 8 6 . . 1 1 6 2 3 9 . 2 . . 1 . . . Cutter 1 | . . . . . . . . . . . . . . . . 1 . . Grunt 56 | . 3 2 . 9 . 4 18 1 1 10 . 2 3 . 3 . . . Brawler 12 | . . . . 1 . . 5 . 1 4 . 1 . . . . . . Duelist 9 | . . . . 2 . . 3 . . 1 . 1 1 . 1 . . . Protector 1 | . . . . 1 . . . . . . . . . . . . . . Sentry 32 | . . 8 1 4 5 1 7 . . 1 . 2 1 2 . . . . Specialist 4 | . . . . . . . 2 . . . . 2 . . . . . . Hunter 10 | . . . . . . 1 1 . . 1 . 2 . 3 2 . . . Programmer 19 | . . . . . 1 2 . . 1 8 . 1 . . 3 3 . . Behemoth 2 | . . . . . . . . . . . . 2 . . . . . . Scrapper 2 | . . . . . 2 . . . . . . . . . . . . . Best Kill Streak 16 | 5 4 5 1 16 3 3 9 3 3 11 . 3 3 2 3 2 . . Combat Bots Only 12 | . 3 3 1 12 2 3 9 3 3 10 . 3 2 2 3 2 . . Max Kills in Single Turn 4 | 1 2 2 1 3 1 1 1 1 2 4 . 1 1 1 1 1 . . Gunslinging 1 | . . 1 . . . . . . . . . . . . . . . . Exploded 4 | . . 1 . 3 . . . . . 4 . 1 . . 1 . . . Melee 1 | . . 1 . 1 1 . . . . 1 . . . . 1 1 . . Uniques/NPCs Destroyed . | . . . . . . . . . . . . . . . . . . . Combat | -11 -10 -9 -8 -8 -8 -6 -6 -5 -5 -5 -4 -4 -4 -3 -3 -2 -2 -2 -------- Run | Yrd Mat Mat Mat Sto Rec Fac Gar Fac Gar Fac Fac Gar Fac Res Gar Res Tes Frg Hostile Shots Fired 1996 | . 51 54 8 64 12 95 278 21 60 331 34 145 28 77 269 129 13 327 Missed 600 | . 14 15 . 13 4 36 94 11 20 109 12 44 3 27 77 53 3 65 Hits 1396 | . 37 39 8 51 8 59 184 10 40 222 22 101 25 50 192 76 10 262 Melee 76 | . . . . 1 . . 7 . . 12 . . . . . 3 . 53 Projectile 1320 | . 37 39 8 50 8 59 177 10 40 210 22 101 25 50 192 73 10 209 AOE 4 | . . . . . . . . . . 1 1 . . . . . . 2 Critical Strikes 126 | . . 1 1 1 . 4 4 . 6 9 1 2 2 . 15 12 . 68 Part Disruptions 3 | . . 1 . . . . 1 . . 1 . . . . . . . . Damage Taken 32286 | . 322 640 116 1215 194 718 2414 155 922 4418 646 2011 722 874 4560 2130 265 9964 Core 3821 | . 61 91 28 207 . 101 276 32 117 675 98 218 73 65 281 174 43 1281 Absorbed by Shields 227 | . . . . . . 113 114 . . . . . . . . . . . Redirected to Shielding 130 | . . . . 58 4 23 6 . . . . . . . 26 13 . . Ignored by Resistances 10 | . . . . . . . 10 . . . . . . . . . . . Regen/Repaired (Parts) 9318 | . . . . . . 157 885 32 . 1960 733 1969 289 165 1304 1824 . . Core Remaining (%) 65 | 100 75 77 . . 57 . 55 . . 17 . . 66 . 73 . . . Volleys Fired 675 | 15 46 42 9 38 27 42 153 8 24 65 7 86 30 25 40 18 . . Largest 3 | 2 2 2 2 2 2 3 3 2 3 3 1 1 1 2 3 1 . . Hottest 314 | 80 100 120 110 111 122 175 175 88 165 210 7 79 110 314 314 10 . . Shots Fired 1214 | 26 91 83 18 60 54 115 344 13 45 101 7 85 30 40 83 19 . . Gun 484 | 26 53 75 18 41 54 42 108 . . . . . . 15 52 . . . Cannon 598 | . 38 8 . . . 73 236 13 41 66 . 51 25 22 25 . . . Launcher 51 | . . . . 19 . . . . . 27 . . . . 4 1 . . Special 81 | . . . . . . . . . 4 8 7 34 5 3 2 18 . . Kinetic 356 | . . . . . . 31 232 5 6 . . 38 12 14 18 . . . Thermal 557 | 11 83 83 18 39 49 84 108 . . 45 . . 13 7 17 . . . Explosive 24 | . . . . 19 . . . . . 5 . . . . . . . . Electromagnetic 196 | 15 8 . . 2 5 . 4 8 35 43 . 13 . 16 46 1 . . Robot Hit Streak 33 | 4 4 6 8 7 10 9 28 9 8 10 6 33 6 9 13 9 . . Robot Miss Streak 5 | 3 5 3 4 3 3 3 5 4 2 3 1 4 4 2 4 1 . . Penetration Max . | . . . . . . . . . . . . . . . . . . . Secondary Targets 4 | . 1 3 . . . . . . . . . . . . . . . . Max Gunslinging Chain 1 | . 1 1 . . . . . . . . . . . . . . . . Shots Hit Robots 859 | 14 44 47 11 44 44 64 220 8 29 80 6 88 27 27 67 37 . 2 Core Hits 420 | 8 20 36 3 57 24 22 95 5 17 65 . 24 9 11 15 8 . 1 Critical Kills 2 | . . . . . . . 2 . . . . . . . . . . . Critical Parts Destroyed 6 | . . . . . . 1 1 . . 4 . . . . . . . . Critical Strikes 31 | . . 3 1 1 3 2 3 . . 11 . 4 . 1 . 1 . 1 Burn 7 | . . 3 1 . 2 1 . . . . . . . . . . . . Destroy 9 | . . . . . . 1 3 . . 5 . . . . . . . . Blast 2 | . . . . . . . . . . . . 2 . . . . . . Corrupt 2 | . . . . . . . . . . 1 . . . 1 . . . . Sever 9 | . . . . . . . . . . 5 . 2 . . . 1 . 1 Impale 2 | . . . . 1 1 . . . . . . . . . . . . . Melee Attacks 190 | . . 1 . 11 13 . 9 . 2 38 1 27 6 2 32 38 5 5 Impact 1 | . . 1 . . . . . . . . . . . . . . . . Slashing 154 | . . . . . . . . . . 38 1 27 6 2 32 38 5 5 Piercing 35 | . . . . 11 13 . 9 . 2 . . . . . . . . . Sneak Attacks 9 | . . . . . 3 . . . . 1 . . 2 . 1 2 . . Combat Hostiles 1 | . . . . . . . . . . . . . . . 1 . . . Follow-up Attacks . | . . . . . . . . . . . . . . . . . . . Damage Inflicted 30844 | 183 643 1151 205 2940 968 1621 6750 311 475 4793 7 4284 1247 1304 2609 1243 . 110 Guns 6710 | 183 315 963 205 503 657 596 2120 . . . . . . 338 830 . . . Cannons 12820 | . 315 35 . . . 1025 4630 311 475 960 . 2355 1037 904 773 . . . Explosions 5562 | . . 107 . 2247 . . . . . 3010 . . . 62 136 . . . Melee 5532 | . . . . 180 308 . . . . 823 . 1929 210 . 870 1102 . 110 Ramming 220 | . 13 46 . 10 3 . . . . . 7 . . . . 141 . . Kinetic 8483 | . . . . . . 459 4534 70 72 . . 1831 538 637 342 . . . Thermal 8368 | 65 597 1014 205 491 579 1162 2120 . . 945 . . 499 267 424 . . . Explosive 3404 | . . . . 2247 . . . . . 1095 . . . 62 . . . . Electromagnetic 4837 | 118 33 91 . 12 78 . 96 241 403 1930 . 524 . 338 973 . . . Impact . | . . . . . . . . . . . . . . . . . . . Slashing 5044 | . . . . . . . . . . 823 . 1929 210 . 870 1102 . 110 Piercing 488 | . . . . 180 308 . . . . . . . . . . . . . Highest Corruption 27 | . . . . 1 1 1 10 . 4 21 1 8 9 . 20 18 18 27 Average Corruption 5 | . . . . 1 1 1 4 . 2 11 1 7 8 . 9 10 18 21 Corruption Purged . | . . . . . . . . . . . . . . . . . . . Corruption Blocked . | . . . . . . . . . . . . . . . . . . . Effects 281 | . . . . . 21 9 57 . 3 42 . 42 17 . 28 31 12 19 Message Errors 68 | . . . . . 1 2 17 . 1 9 . 13 6 . 4 9 3 3 Matter Fused 68 | . . . . . 7 2 14 . 1 9 . 13 1 . 7 7 3 4 Heat Flow Errors 35 | . . . . . 5 1 5 . . 8 . 2 2 . 4 3 3 2 Energy Discharges 25 | . . . . . 4 1 3 . . 2 . 6 2 . 1 2 2 2 Parts Rejected 6 | . . . . . . . 1 . . 1 . . 1 . 3 . . . Parts Fused 2 | . . . . . . . 2 . . . . . . . . . . . Data Loss (minor) 39 | . . . . . 4 1 7 . . 8 . 6 3 . 6 4 . . Data Loss (major) 7 | . . . . . . . 2 . 1 . . . 2 . . 1 1 . Misfires 4 | . . . . . . . . . . 1 . . . . 2 1 . . Alerts 8 | . . . . . . 1 3 . . 1 . 1 . . . 1 . 1 Misdirections 14 | . . . . . . . . . . 3 . . . . 1 3 . 7 Weapon Failures 5 | . . . . . . 1 3 . . . . 1 . . . . . . Overload Shots . | . . . . . . . . . . . . . . . . . . . Overflow Damage 972 | . 25 . . 38 . 27 87 10 . 225 . 25 110 29 250 146 . . Projectiles 325 | . 25 . . . . 27 87 10 . . . 3 47 29 97 . . . Explosions 97 | . . . . 38 . . . . . 59 . . . . . . . . Melee 550 | . . . . . . . . . . 166 . 22 63 . 153 146 . . Knockbacks 35 | . . . . . . 7 19 . . . . 1 5 . . 3 . . Impact 3 | . . . . . . . . . . . . . . . . 3 . . Kinetic 29 | . . . . . . 6 17 . . . . 1 5 . . . . . Secondary 3 | . . . . . . 1 2 . . . . . . . . . . . Self-Inflicted Damage 745 | . . 98 . 164 . . . . . 219 7 . . 84 117 56 . . Shots 29 | . . 4 . 6 . . . . . 10 . . . 1 4 4 . . Rammed 22 | . 6 6 . 2 1 . . . . . . . . . . 7 . . Targets Rammed 29 | . 9 9 . 2 1 . . . . . . . . . . 8 . . Kicked . | . . . . . . . . . . . . . . . . . . . Crushed 7 | . 3 3 . . . . . . . . . . . . . 1 . . Highest Temperature 499 | 72 310 471 222 408 238 499 291 48 194 360 . 241 485 225 469 240 151 103 Average Temperature 108 | 24 94 130 85 94 72 185 61 24 77 107 . 58 158 65 164 108 78 55 Received Heat Transfer 3498 | . 54 132 54 351 72 267 710 . . 397 75 282 191 60 415 45 36 357 Effects 24 | . 1 6 1 . . 4 1 . . 3 . . 5 . 3 . . . Shutdowns 7 | . . 1 . . . 2 . . . . . . 3 . 1 . . . Energy Bleed 10 | . 1 1 1 . . 2 1 . . 1 . . 2 . 1 . . . Interference 3 | . . 1 . . . . . . . 2 . . . . . . . . Matter Decay 1 | . . 1 . . . . . . . . . . . . . . . . Damage (minor) 2 | . . 1 . . . . . . . . . . . . 1 . . . Damage (major) 1 | . . 1 . . . . . . . . . . . . . . . . Siege Activations . | . . . . . . . . . . . . . . . . . . . Martial Activations . | . . . . . . . . . . . . . . . . . . . Shielding Activations . | . . . . . . . . . . . . . . . . . . . Robots Disrupted . | . . . . . . . . . . . . . . . . . . . Combat Hostiles . | . . . . . . . . . . . . . . . . . . . Robots Corrupted 12 | . . . . . . . . . . 5 . 4 . . 2 1 . . Combat Hostiles 10 | . . . . . . . . . . 5 . 3 . . 2 . . . Parts Fried 25 | . . . . . 1 . . 3 1 11 . 5 . . 4 . . . Impact Corruptions 1 | . . . . . . . . . . . . . . . . 1 . . Robots Melted 1 | . . . . . . 1 . . . . . . . . . . . . Combat Hostiles 1 | . . . . . . 1 . . . . . . . . . . . . Parts Melted 37 | . 4 5 4 2 8 9 1 . . . . . 1 2 1 . . . Heat Transferred 11706 | 150 1291 2233 481 915 1308 2136 2074 . . 300 . . 300 148 370 . . . Parts Sabotaged . | . . . . . . . . . . . . . . . . . . . Parts Stolen . | . . . . . . . . . . . . . . . . . . . Parts Stripped . | . . . . . . . . . . . . . . . . . . . Power Chain Reactions 4 | . . 3 . 1 . . . . . . . . . . . . . . Alert | -11 -10 -9 -8 -8 -8 -6 -6 -5 -5 -5 -4 -4 -4 -3 -3 -2 -2 -2 ------- Run | Yrd Mat Mat Mat Sto Rec Fac Gar Fac Gar Fac Fac Gar Fac Res Gar Res Tes Frg Maximum Alert Level 5 | . . 1 . 1 . 1 5 4 4 4 2 4 3 2 4 2 1 . Low Security (%) 43 | 100 100 72 100 42 100 93 8 . . . . . . . . . . 100 Level 1 15 | . . 27 . 57 . 6 20 . . . 10 28 . 70 2 34 100 . Level 2 16 | . . . . . . . 12 . . 54 89 1 7 29 62 65 . . Level 3 10 | . . . . . . . 11 . 98 12 . 21 92 . 34 . . . Level 4 9 | . . . . . . . 18 100 1 32 . 47 . . . . . . Level 5 4 | . . . . . . . 28 . . . . . . . . . . . High Security . | . . . . . . . . . . . . . . . . . . . Max Security . | . . . . . . . . . . . . . . . . . . . Peak Influence 2355 | 10 87 247 82 379 141 217 2355 1373 1108 1270 592 1534 841 446 1107 618 283 181 Initial 1236 | . . . 82 14 141 50 106 1236 949 560 592 254 805 394 328 618 277 130 Average 455 | 1 27 111 54 193 14 128 1025 1325 1067 800 488 973 765 391 670 441 259 124 Influence Increases 10606 | 35 367 622 42 648 281 760 2479 181 209 1254 15 1420 293 258 931 484 96 231 Destroy 0b10 Robot/C 4620 | . 220 320 20 340 120 340 1080 120 120 680 . 680 140 100 220 120 . . Destroy 0b10 Robot/NC 420 | 35 35 65 5 60 70 15 30 15 . 20 . 30 10 10 5 15 . . Destroy Leader 688 | . 58 120 10 74 . 92 30 22 10 112 . 60 20 30 30 20 . . Allied During Kill 479 | . . . . 5 1 106 100 8 4 . . 210 29 . 4 12 . . Successful Hack 233 | . 23 35 7 7 12 69 . 14 . . . . . . 22 23 21 . Disable Machine 600 | . 30 45 . 30 75 30 15 . 15 165 . 15 45 45 . 15 75 . Anti-Garrison Action 1500 | . . . . . . . 1000 . 50 . . 300 . . 150 . . . Destroy Structure 666 | . 1 7 . 57 3 13 134 2 10 202 . 65 34 58 65 9 . 6 Advance Influence 50 | . . . . . . 50 . . . . . . . . . . . . Partial Spotted 90 | . . . . 15 . 15 . . . . . . 15 15 15 . . 15 Lose Combat Pursuer 1260 | . . 30 . 60 . 30 90 . . 75 15 60 . . 420 270 . 210 Influence Decreases 10545 | 35 367 426 204 319 644 608 276 1179 498 1112 862 249 1075 572 270 1089 357 403 Entered New Map 5162 | . . . 114 20 222 . 46 1119 408 508 618 109 729 358 110 481 217 103 Time Decay 3913 | 35 367 396 90 219 422 408 . 50 . 464 214 . 286 214 . 458 140 150 Lost Part 620 | . . 30 . 60 . . 80 10 50 100 10 . . . 120 10 . 150 Lost Ally 850 | . . . . 20 . 200 150 . 40 40 20 140 60 . 40 140 . . Squads Dispatched 38 | . 3 2 . 4 . 4 . 1 . 9 1 . 1 2 . 9 1 1 Investigation 4 | . 1 . . . . 1 . . . . . . . 1 . 1 . . Extermination 11 | . . . . . . 2 . . . 2 . . 1 1 . 3 1 1 Reinforcement 16 | . 2 2 . 2 . 1 . . . 4 . . . . . 5 . . Assault 4 | . . . . 2 . . . . . 2 . . . . . . . . Garrison 3 | . . . . . . . . 1 . 1 1 . . . . . . . Intercept . | . . . . . . . . . . . . . . . . . . . Searches Triggered . | . . . . . . . . . . . . . . . . . . . Construction Impeded 3 | . . . . 1 . 1 . . . 1 . . . . . . . . Haulers Reinforced . | . . . . . . . . . . . . . . . . . . . Active Scanning Responses . | . . . . . . . . . . . . . . . . . . . Cargo Convoy Interrupts . | . . . . . . . . . . . . . . . . . . . Stealth | -11 -10 -9 -8 -8 -8 -6 -6 -5 -5 -5 -4 -4 -4 -3 -3 -2 -2 -2 --------- Run | Yrd Mat Mat Mat Sto Rec Fac Gar Fac Gar Fac Fac Gar Fac Res Gar Res Tes Frg Distress Signals 16 | . 2 4 . 1 . 1 . 1 . 1 . . 3 . . 3 . . Communications Jammed . | . . . . . . . . . . . . . . . . . . . Distress Signals . | . . . . . . . . . . . . . . . . . . . Times Spotted 421 | . 19 27 1 26 9 18 53 7 8 55 14 39 18 12 37 42 3 33 Peak Tracking Total 14 | . 4 4 1 12 2 4 6 7 3 8 8 7 6 4 11 11 3 14 Tactical Retreats 42 | . . 1 . 3 . 1 3 . . 4 1 3 . . 13 8 . 5 Traps | -11 -10 -9 -8 -8 -8 -6 -6 -5 -5 -5 -4 -4 -4 -3 -3 -2 -2 -2 ------- Run | Yrd Mat Mat Mat Sto Rec Fac Gar Fac Gar Fac Fac Gar Fac Res Gar Res Tes Frg Traps Triggered 33 | . 1 3 . . . 3 8 . 2 1 1 4 3 1 3 1 1 1 Indirectly . | . . . . . . . . . . . . . . . . . . . Trap Hack Attempts . | . . . . . . . . . . . . . . . . . . . Triggered . | . . . . . . . . . . . . . . . . . . . Disarmed . | . . . . . . . . . . . . . . . . . . . Reprogrammed . | . . . . . . . . . . . . . . . . . . . Reused . | . . . . . . . . . . . . . . . . . . . Traps Extracted . | . . . . . . . . . . . . . . . . . . . Installed . | . . . . . . . . . . . . . . . . . . . Triggered . | . . . . . . . . . . . . . . . . . . . Machines | -11 -10 -9 -8 -8 -8 -6 -6 -5 -5 -5 -4 -4 -4 -3 -3 -2 -2 -2 ---------- Run | Yrd Mat Mat Mat Sto Rec Fac Gar Fac Gar Fac Fac Gar Fac Res Gar Res Tes Frg Machines Disabled 52 | . 2 3 . 2 5 2 5 . 2 11 . 6 3 3 2 1 5 . Max in Single Turn 5 | . 1 2 . 1 1 1 1 . 1 5 . 1 1 1 1 1 1 . Garrison Access 1 | . . . . . . . . . . 1 . . . . . . . . Garrison Relay 12 | . . . . . . . 4 . 1 . . 5 . . 2 . . . Machines Repaired . | . . . . . . . . . . . . . . . . . . . Machines Dismantled . | . . . . . . . . . . . . . . . . . . . Machines Sabotaged . | . . . . . . . . . . . . . . . . . . . Overloaded Fab Kills . | . . . . . . . . . . . . . . . . . . . Hacking | -11 -10 -9 -8 -8 -8 -6 -6 -5 -5 -5 -4 -4 -4 -3 -3 -2 -2 -2 --------- Run | Yrd Mat Mat Mat Sto Rec Fac Gar Fac Gar Fac Fac Gar Fac Res Gar Res Tes Frg Machines Accessed 65 | . 6 7 1 3 11 11 1 3 1 3 1 . 8 3 2 2 1 1 Terminals 38 | . 5 5 1 3 5 5 1 1 1 1 . . 3 1 2 2 1 1 Fabricators 3 | . . . . . . 2 . . . . . . 1 . . . . . Repair Stations 1 | . . . . . . . . . . . . . . 1 . . . . Recycling Units 14 | . 1 1 . . 5 2 . 1 . 1 . . 3 . . . . . Scanalyzers 3 | . . 1 . . . 1 . . . . . . 1 . . . . . Garrison Access 5 | . . . . . . 1 . 1 . 1 1 . . 1 . . . . Total Hacks 122 | . 13 12 1 8 19 21 2 4 2 4 1 . 16 5 4 5 1 4 Successful 64 | . 9 7 1 3 12 7 1 3 1 2 1 . 8 2 2 2 1 2 Failed 57 | . 4 4 . 5 7 14 1 1 1 2 . . 8 3 2 3 . 2 Catastrophic 11 | . 1 . . 1 2 2 . . . 1 . . 3 . . . . 1 Database Lockouts 1 | . . 1 . . . . . . . . . . . . . . . . Manual 16 | . . 1 1 6 2 4 . . . . . . . 1 . 1 . . Terminals 75 | . 12 9 1 8 10 11 2 1 2 1 . . 3 1 4 5 1 4 Fabricators 7 | . . . . . . 4 . . . . . . 3 . . . . . Repair Stations 3 | . . . . . . . . . . . . . . 3 . . . . Recycling Units 23 | . 1 1 . . 7 4 . 2 . 2 . . 6 . . . . . Scanalyzers 7 | . . 2 . . . 1 . . . . . . 4 . . . . . Garrison Access 5 | . . . . . . 1 . 1 . 1 1 . . 1 . . . . Terminal Hacks 38 | . 8 5 1 3 7 2 1 1 1 . . . 2 . 2 2 1 2 Record 1 | . . . . . . . . . . . . . . . . 1 . . Part Schematic 3 | . . . . . 3 . . . . . . . . . . . . . Prototype ID Bank 3 | . 2 . . . . . . . . . . . 1 . . . . . Open Door 1 | . . . . 1 . . . . . . . . . . . . . . Open DSF 1 | . . . . . . . . . . . . . 1 . . . . . Level Access Points 1 | . . . . . . . . . . . . . . . . 1 . . Branch Access Points 5 | . . 1 1 1 . 1 . . . . . . . . . . 1 . Emergency Access Points 3 | . . . . . . . 1 . 1 . . . . . 1 . . . Garrison Index 1 | . . . . . . 1 . . . . . . . . . . . . Locate Traps 2 | . 2 . . . . . . . . . . . . . . . . . Dispatch Records 5 | . 1 1 . 1 1 . . . . . . . . . . . . 1 Patrol Status 1 | . 1 . . . . . . . . . . . . . . . . . Hauler Manifests 3 | . 1 2 . . . . . . . . . . . . . . . . Registered Components 1 | . . . . . . . . 1 . . . . . . . . . . Registered Prototypes 1 | . . . . . . . . . . . . . . . . . . 1 Zone Layout 3 | . 1 1 . . 1 . . . . . . . . . . . . . Garrison Registry 1 | . . . . . . . . . . . . . . . 1 . . . Release Object 2 | . . . . . 2 . . . . . . . . . . . . . Fabricator Hacks 2 | . . . . . . 2 . . . . . . . . . . . . Build 2 | . . . . . . 2 . . . . . . . . . . . . Repair Station Hacks 1 | . . . . . . . . . . . . . . 1 . . . . Scan Component 1 | . . . . . . . . . . . . . . 1 . . . . Recycling Unit Hacks 12 | . 1 1 . . 5 1 . 1 . 1 . . 2 . . . . . Retrieve Components 12 | . 1 1 . . 5 1 . 1 . 1 . . 2 . . . . . Scanalyzer 6 | . . 1 . . . 1 . . . . . . 4 . . . . . Retrieve Study 6 | . . 1 . . . 1 . . . . . . 4 . . . . . Garrison Access Hacks 5 | . . . . . . 1 . 1 . 1 1 . . 1 . . . . Unlock Access 4 | . . . . . . 1 . 1 . . 1 . . 1 . . . . Seal Access 1 | . . . . . . . . . . 1 . . . . . . . . Unauthorized Hacks . | . . . . . . . . . . . . . . . . . . . Terminals . | . . . . . . . . . . . . . . . . . . . Fabricators . | . . . . . . . . . . . . . . . . . . . Repair Stations . | . . . . . . . . . . . . . . . . . . . Recycling Units . | . . . . . . . . . . . . . . . . . . . Scanalyzers . | . . . . . . . . . . . . . . . . . . . Garrison Access . | . . . . . . . . . . . . . . . . . . . Data Cores Recovered 1 | . . . . . . . . 1 . . . . . . . . . . Used . | . . . . . . . . . . . . . . . . . . . Hacking Detections 45 | . 4 4 . 3 4 10 1 2 1 2 1 . 6 2 1 2 1 1 Full Trace Events 5 | . . . . . 1 1 . . . . . . . 1 1 1 . . Feedback Events . | . . . . . . . . . . . . . . . . . . . Feedback Blocked . | . . . . . . . . . . . . . . . . . . . Robot Schematics Acquired . | . . . . . . . . . . . . . . . . . . . Robots Built 1 | . . . . . . 1 . . . . . . . . . . . . Authchips . | . . . . . . . . . . . . . . . . . . . Time 50 | . . . . . . 50 . . . . . . . . . . . . Total Robot Build Rating 5 | . . . . . . 5 . . . . . . . . . . . . Part Schematics Acquired 3 | . . . . . 3 . . . . . . . . . . . . . Parts Built . | . . . . . . . . . . . . . . . . . . . Authchips . | . . . . . . . . . . . . . . . . . . . Time 64 | . . . . . . 64 . . . . . . . . . . . . Total Part Build Rating . | . . . . . . . . . . . . . . . . . . . Part Studies Acquired 6 | . . 1 . . . 1 . . . . . . 4 . . . . . Parts Repaired . | . . . . . . . . . . . . . . . . . . . Time . | . . . . . . . . . . . . . . . . . . . Parts Recycled . | . . . . . . . . . . . . . . . . . . . Recycled Matter . | . . . . . . . . . . . . . . . . . . . Retrieved Matter . | . . . . . . . . . . . . . . . . . . . Retrieved Components 21 | . 3 . . . 15 1 . 1 . . . . 1 . . . . . Parts Scanalyzed . | . . . . . . . . . . . . . . . . . . . Part Schematics Acquired . | . . . . . . . . . . . . . . . . . . . Parts Damaged . | . . . . . . . . . . . . . . . . . . . Bothacking | -11 -10 -9 -8 -8 -8 -6 -6 -5 -5 -5 -4 -4 -4 -3 -3 -2 -2 -2 ------------ Run | Yrd Mat Mat Mat Sto Rec Fac Gar Fac Gar Fac Fac Gar Fac Res Gar Res Tes Frg Used RIF Installer 4 | . . . . . . . 1 . 1 . . 1 . . 1 . . . Watcher Feeds 1 | . . . . . . . . . 1 . . . . . . . . . Structural Interface 1 | . . . . . . . . . . . . . . . 1 . . . Autooverride 1 | . . . . . . . . . . . . 1 . . . . . . Robots Hacked 46 | . . . . . . . . . 2 5 3 14 5 2 2 13 . . Non-combat 7 | . . . . . . . . . . 2 1 . 2 1 . 1 . . Combat 39 | . . . . . . . . . 2 3 2 14 3 1 2 12 . . Autooverrided 3 | . . . . . . . . . . . . . . . 1 2 . . Robot Hacks Applied 53 | . . . . . . . . . 3 7 5 14 5 2 2 15 . . parse_system 2 | . . . . . . . . . . 1 . . . . . 1 . . drop_inventory 3 | . . . . . . . . . . . . . 2 1 . . . . locate_stockpiles 2 | . . . . . . . . . . 1 1 . . . . . . . map_route 1 | . . . . . . . . . . . . . . . . 1 . . mark_security 1 | . . . . . . . . . . . . . . . . 1 . . find_garrison 2 | . . . . . . . . . . . . . . 1 . 1 . . scatter_targeting 1 | . . . . . . . . . . . . 1 . . . . . . mark_system 1 | . . . . . . . . . 1 . . . . . . . . . link_complan 1 | . . . . . . . . . . . . . . . . 1 . . overload_power 4 | . . . . . . . . . . . . 1 . . . 3 . . amplify_resonance 2 | . . . . . . . . . . . . 1 . . . 1 . . disable_weapons 2 | . . . . . . . . . 1 1 . . . . . . . . reboot_system 2 | . . . . . . . . . . . 1 1 . . . . . . go_dormant 1 | . . . . . . . . . . . 1 . . . . . . . overwrite_iff 6 | . . . . . . . . . . . . 4 . . 1 1 . . streamctrl_low 2 | . . . . . . . . . . 1 1 . . . . . . . formatsys_low 1 | . . . . . . . . . . 1 . . . . . . . . formatsys_high 19 | . . . . . . . . . 1 2 1 6 3 . 1 5 . . Relay Couplers Released 46 | . . . . . . . 15 . 3 1 . 17 . . 10 . . . Machine Destruction 46 | . . . . . . . 15 . 3 1 . 17 . . 10 . . . Attached 26 | . . . . . . . 1 . 1 4 2 7 3 . 1 6 . 1 Fabnet Peak Effective % . | . . . . . . . . . . . . . . . . . . . Robots Rewired 34 | . . . . . 21 1 9 . . . . 3 . . . . . . Allies Hacked 1 | . . . . . . . . . . . . . 1 . . . . . Hacks Repelled . | . . . . . . . . . . . . . . . . . . . Allies | -11 -10 -9 -8 -8 -8 -6 -6 -5 -5 -5 -4 -4 -4 -3 -3 -2 -2 -2 -------- Run | Yrd Mat Mat Mat Sto Rec Fac Gar Fac Gar Fac Fac Gar Fac Res Gar Res Tes Frg Total Allies 69 | . . . . 2 21 2 9 . 1 4 2 15 3 . 2 8 . . Largest Group 21 | . . . . 2 21 20 6 1 1 1 2 6 2 . 1 5 . . Highest-Rated Group 328 | . . . . 62 304 328 234 32 32 49 76 323 98 . 47 325 . . Highest-Rated Ally 116 | . . . . 31 34 41 46 32 32 49 47 116 49 . 47 69 . . Total Orders 5 | . . . . . 2 . . . . 2 1 . . . . . . . TUNNEL 1 | . . . . . 1 . . . . . . . . . . . . . DROP 4 | . . . . . 1 . . . . 2 1 . . . . . . . Ally Attacks 287 | . . . . 11 23 46 63 6 1 4 1 84 15 . 9 24 . . Total Damage 8598 | . . . . 163 293 1104 1927 254 53 95 27 3030 428 . 218 1006 . . Kills 61 | . . . . 1 4 9 12 5 . . . 23 3 . 1 3 . . Allies Corrupted 3 | . . . . . . . . . 1 . . 1 1 . . . . . Allies Melted . | . . . . . . . . . . . . . . . . . . . Intel | -11 -10 -9 -8 -8 -8 -6 -6 -5 -5 -5 -4 -4 -4 -3 -3 -2 -2 -2 ------- Run | Yrd Mat Mat Mat Sto Rec Fac Gar Fac Gar Fac Fac Gar Fac Res Gar Res Tes Frg Active Infowar (turns) 10458 | 13 1215 387 . . . . 2019 119 259 1149 444 1036 637 455 979 1156 298 292 Optics 8843 | . . . . . . . 2019 119 259 1149 444 1036 637 455 979 1156 298 292 Seismic 1615 | 13 1215 387 . . . . . . . . . . . . . . . . Robot Analysis Total . | . . . . . . . . . . . . . . . . . . . Derelict Logs Recovered . | . . . . . . . . . . . . . . . . . . . Drone Launches . | . . . . . . . . . . . . . . . . . . . Drone Recoveries . | . . . . . . . . . . . . . . . . . . . Exploration | -11 -10 -9 -8 -8 -8 -6 -6 -5 -5 -5 -4 -4 -4 -3 -3 -2 -2 -2 ------------- Run | Yrd Mat Mat Mat Sto Rec Fac Gar Fac Gar Fac Fac Gar Fac Res Gar Res Tes Frg Turns Passed 18598 | 157 1215 1619 194 514 3625 1059 2939 119 259 1175 446 1440 637 455 979 1156 298 312 Spaces Moved 12606 | 64 476 717 99 213 1229 1089 2008 93 211 867 301 937 956 718 904 858 452 414 Core 21 | 8 . . . . . 13 . . . . . . . . . . . . Treads 5529 | 56 476 717 99 213 1087 . 943 . . . . 697 . . . 375 452 414 Legs 3295 | . . . . . . . 15 . . . 110 240 956 718 904 352 . . Wheels . | . . . . . . . . . . . . . . . . . . . Hover 1597 | . . . . . . . 509 93 211 784 . . . . . . . . Flight 2164 | . . . . . 142 1076 541 . . 83 191 . . . . 131 . . Fastest Speed 50 | 50 160 160 160 160 67 67 67 84 84 53 53 51 51 51 51 61 61 61 Average Speed 96 | 146 160 192 160 160 155 72 97 84 84 81 119 91 51 51 53 88 61 61 Slowest Speed 550 | 160 160 240 160 220 199 550 195 84 84 84 201 319 51 51 104 149 61 61 Overloaded Moves . | . . . . . . . . . . . . . . . . . . . Propulsion Burnouts . | . . . . . . . . . . . . . . . . . . . Robots Hopped 26 | . . . . . . 21 1 . . 2 . . . . . 2 . . Potential Cave-ins . | . . . . . . . . . . . . . . . . . . . Cave-ins Triggered 1 | . . . . 1 . . . . . . . . . . . . . . Exploration Rate (%) 42 | 5 79 63 7 39 95 21 94 3 40 25 14 84 30 23 61 26 57 41 Regions Visited 18 Branch Regions 4 Pre-discovered Areas . | . . . . . . . . . . . . . . . . . . . Known Exits Taken 6 | . . . 1 1 . 1 . 1 . . 1 . . 1 . . . . Unknown Exits Taken 8 | 1 1 1 . . 1 . . . . 1 . . 1 . . 1 1 . Scrap Searched . | . . . . . . . . . . . . . . . . . . . Spaces Dug 10 | . . 1 . . . . . . . . . . . 2 2 3 . 2 Terrain Destroyed 359 | . . 5 . 93 . . 24 . . 152 . 17 16 41 6 3 . 2 Melee 10 | . . 1 . . . . . . . . . . . 2 2 3 . 2 Projectile 75 | . . . . 3 . . 24 . . 6 . 17 16 5 4 . . . AOE 274 | . . 4 . 90 . . . . . 146 . . . 34 . . . . Terrain Rammed 2 | . . 1 . . . . . . . . 1 . . . . . . . Walls Destroyed . | . . . . . . . . . . . . . . . . . . . Machines Disabled . | . . . . . . . . . . . . . . . . . . . Actions | -11 -10 -9 -8 -8 -8 -6 -6 -5 -5 -5 -4 -4 -4 -3 -3 -2 -2 -2 --------- Run | Yrd Mat Mat Mat Sto Rec Fac Gar Fac Gar Fac Fac Gar Fac Res Gar Res Tes Frg Total 17663 | 98 832 871 120 298 2891 1259 2700 122 253 1185 384 1415 1074 764 1274 1193 465 465 Wait 3457 | 12 283 31 . 7 1374 109 388 21 11 184 63 340 53 11 271 254 5 40 Move 12536 | 63 475 716 98 212 1228 1048 2004 92 209 862 301 935 955 717 903 853 451 414 Hop 24 | . . . . . . 19 1 . . 2 . . . . . 2 . . Pick Up 135 | 1 10 23 6 1 14 8 16 . 3 9 . 16 11 2 7 4 3 1 Fast Attach 41 | 7 . 4 1 2 1 . 3 . . 4 1 . 1 2 7 3 1 4 Attach 34 | . . 3 1 5 . 2 5 1 . 9 1 . 1 1 3 2 . . Detach 13 | . . . . . 5 . . . . 4 1 . . . 1 2 . . Swap 92 | . 6 19 . 19 8 4 8 . 2 1 2 7 6 2 3 5 . . Drop 119 | . 3 22 5 1 39 9 2 . . 7 6 4 10 2 4 4 . 1 Fire 675 | 15 46 42 9 38 27 42 153 8 24 65 7 86 30 25 40 18 . . Melee 190 | . . 1 . 11 13 . 9 . 2 38 1 27 6 2 32 38 5 5 Ram 2 | . . 1 . . . . . . . . 1 . . . . . . . Kick . | . . . . . . . . . . . . . . . . . . . Crush 29 | . 9 9 . 2 1 . . . . . . . . . . 8 . . Escape Stasis 66 | . . . . . . 17 44 . 2 . . . . . 3 . . . Rewire 250 | . . . . . 181 1 67 . . . . . 1 . . . . . Trap . | . . . . . . . . . . . . . . . . . . . Miscellaneous . | . . . . . . . . . . . . . . . . . . . Route ------- -11/Scrapyard -10/Materials (discovered 5 exits: *Mat x3 / [*Min x2]) -9/Materials (discovered 4 exits: *Mat x2 / *Min x2) -8/Materials -8/Storage -8/Recycling -6/Factory (discovered 5 exits: *Fac x2 / Low x2 / Gar) -6/Garrison (discovered 3 exits: *Fac x3) -5/Factory -5/Garrison -5/Factory -4/Factory -4/Garrison (discovered 3 exits: *Fac x3) -4/Factory -3/Research (discovered 2 exits: *Res / Gar) -3/Garrison (discovered 4 exits: *Res x3 / [Res]) -2/Research (discovered 4 exits: Acc x3 / *Tes) -2/Testing (discovered 2 exits: [*Sec] / *Frg) -2/Protoforge History --------- Turn | Location | Event 4 | -11/Scrapyard | Discovered new exit (range 15) 158 | -11/Scrapyard | Entered Materials 261 | -10/Materials | Discovered new exit (range 5) 338 | -10/Materials | Build established: Mutant 693 | -10/Materials | Discovered new exit (range 11) 1066 | -10/Materials | Discovered new exit (range 10) 1128 | -10/Materials | Discovered new exit (range 7) 1248 | -10/Materials | Discovered new exit (range 14) 1373 | -10/Materials | Entered another Materials area 1373 | -9/Materials | Evolved 2 slots: Utility x2 1591 | -9/Materials | Discovered new exit (range 10) 1650 | -9/Materials | Identified exit to Mines 2186 | -9/Materials | Discovered new exit (range 13) 2424 | -9/Materials | Central database locked down 2515 | -9/Materials | Build established: Scavenger-Mutant 2992 | -9/Materials | Entered another Materials area 2992 | -8/Materials | Evolved 2 slots: Propulsion x1, Utility x1 3046 | -8/Materials | Identified exit to Storage 3186 | -8/Materials | Entered Storage 3298 | -8/Storage | Met a pair of Derelict thieves 3344 | -8/Storage | Identified exit to Recycling 3450 | -8/Storage | Lost 4 parts (1n2u1w) 3454 | -8/Storage | Destroyed 12 combat bots 3471 | -8/Storage | Crushed by falling debris 3694 | -8/Storage | Used back door to open Recycling access 3695 | -8/Storage | Build established: Mutant 3700 | -8/Storage | Entered Recycling 5768 | -8/Recycling | Discovered new exit (range 16) 6205 | -8/Recycling | Build established: Commander-Mutant 6364 | -8/Recycling | Scanned before Scraplab entrance 6378 | -8/Recycling | Angered Scraplab inhabitants 6451 | -8/Recycling | Found Prototype Device 6451 | -8/Recycling | Identified Scrap Engine 7028 | -8/Recycling | Build established: Commander-Construct 7325 | -8/Recycling | Entered Factory 7325 | -6/Factory | Accompanied by 19 allies 7325 | -6/Factory | Evolved 4 slots: Propulsion x1, Utility x2, Weapon x1 7395 | -6/Factory | Identified exit to Lower Caves 7666 | -6/Factory | Discovered new exit (range 7) 7928 | -6/Factory | Fabricated A-15 Conveyor (x1) 8337 | -6/Factory | Discovered new exit (range 15) 8354 | -6/Factory | Identified exit to Garrison 8384 | -6/Factory | Entered Garrison 8384 | -6/Garrison | Accompanied by 5 allies 8440 | -6/Garrison | Triggered checkpoint 8502 | -6/Garrison | Discovered new exit (range 13) 8505 | -6/Garrison | Lost 3 allies 8520 | -6/Garrison | Triggered checkpoint 8774 | -6/Garrison | Build established: Construct 9036 | -6/Garrison | Triggered checkpoint 9208 | -6/Garrison | Triggered checkpoint 9462 | -6/Garrison | Discovered new exit (range 10) 9754 | -6/Garrison | Triggered checkpoint 9780 | -6/Garrison | Discovered new exit (range 21) 9784 | -6/Garrison | Triggered checkpoint 9812 | -6/Garrison | Garrison Relay disabled 9818 | -6/Garrison | Destroyed 9 combat bots 9828 | -6/Garrison | Lost 3 parts (2u1w) 9962 | -6/Garrison | Lost 3 allies 9964 | -6/Garrison | Spotted Striker 9965 | -6/Garrison | Spotted Striker 10070 | -6/Garrison | Allies destroyed Striker 10076 | -6/Garrison | Allies destroyed Striker 10111 | -6/Garrison | System corruption reached 10% 10260 | -6/Garrison | Triggered checkpoint 10313 | -6/Garrison | Build established: Commander-Construct 10382 | -6/Garrison | Triggered checkpoint 10432 | -6/Garrison | Triggered checkpoint 10579 | -6/Garrison | Found Fusion Bomb Launcher 10743 | -6/Garrison | Build established: Scavenger-Construct 10848 | -6/Garrison | Installed Relay Interface Framework 10928 | -6/Garrison | Triggered checkpoint 11003 | -6/Garrison | Garrison Relay disabled 11167 | -6/Garrison | Garrison Relay disabled 11264 | -6/Garrison | Garrison Relay disabled 11323 | -6/Garrison | Entered Factory 11323 | -5/Factory | Accompanied by 1 ally 11323 | -5/Factory | Evolved 2 slots: Propulsion x1, Weapon x1 11349 | -5/Factory | Garrison activated, responded to threat 11441 | -5/Factory | Identified exit to Garrison 11442 | -5/Factory | Entered Garrison 11442 | -5/Garrison | Accompanied by 1 ally 11463 | -5/Garrison | Triggered checkpoint 11485 | -5/Garrison | Garrison Relay disabled 11556 | -5/Garrison | Build established: Bothacker-Construct 11614 | -5/Garrison | Discovered new exit (range 10) 11637 | -5/Garrison | Expanded RIF knowledge: Watcher Feeds 11701 | -5/Garrison | Entered Factory 11710 | -5/Factory | Lost 5 parts (2u3w) 11885 | -5/Factory | Found Prototype Launcher 11885 | -5/Factory | Identified Tesla Bomb Launcher 11927 | -5/Factory | P-70 Sage assimilated allied Conveyor 6a 12197 | -5/Factory | Found Corrupted Prototype Processor 12197 | -5/Factory | Identified Exp. Targeting Computer 12198 | -5/Factory | System corruption reached 10% 12205 | -5/Factory | Lost 5 parts (2u3w) 12219 | -5/Factory | Found Tesla Bomb Launcher 12301 | -5/Factory | First assault squad dispatched 12378 | -5/Factory | Garrison activated, responded to threat 12449 | -5/Factory | Destroyed 10 combat bots 12618 | -5/Factory | Core integrity fell below 50% 12721 | -5/Factory | Lost 3 parts (2u1w) 12850 | -5/Factory | Core integrity fell below 20% 12868 | -5/Factory | Discovered new exit (range 18) 12876 | -5/Factory | Entered another Factory area 12876 | -4/Factory | Evolved 2 slots: Power x1, Utility x1 13165 | -4/Factory | Spotted B-86 Titan 13175 | -4/Factory | Build established: Bothacker-Mutant 13306 | -4/Factory | Garrison activated, responded to threat 13322 | -4/Factory | Identified exit to Garrison 13322 | -4/Factory | Entered Garrison 13357 | -4/Garrison | Spotted B-86 Titan 13364 | -4/Garrison | Triggered checkpoint 13443 | -4/Garrison | Destroyed B-86 Titan 13594 | -4/Garrison | Build established: Bothacker-Construct 13642 | -4/Garrison | Garrison Relay disabled 13729 | -4/Garrison | Spotted B-86 Titan 13740 | -4/Garrison | Triggered checkpoint 13742 | -4/Garrison | Triggered checkpoint 13747 | -4/Garrison | Destroyed B-86 Titan 13751 | -4/Garrison | Triggered checkpoint 13824 | -4/Garrison | Discovered new exit (range 13) 13832 | -4/Garrison | Triggered checkpoint 13926 | -4/Garrison | Found embedded Infiltrators 13938 | -4/Garrison | Triggered checkpoint 13960 | -4/Garrison | Garrison Relay disabled 14052 | -4/Garrison | Discovered new exit (range 10) 14060 | -4/Garrison | Triggered checkpoint 14119 | -4/Garrison | Garrison Relay disabled 14178 | -4/Garrison | Triggered checkpoint 14196 | -4/Garrison | Triggered checkpoint 14227 | -4/Garrison | Expanded RIF knowledge: Autooverride 14239 | -4/Garrison | Garrison Relay disabled 14240 | -4/Garrison | Triggered checkpoint 14279 | -4/Garrison | Discovered new exit (range 13) 14287 | -4/Garrison | Lost 3 allies 14762 | -4/Garrison | Entered Factory 14762 | -4/Factory | Accompanied by 1 ally 15374 | -4/Factory | Discovered new exit (range 13) 15399 | -4/Factory | Entered Research 15399 | -3/Research | Evolved 2 slots: Utility x1, Weapon x1 15540 | -3/Research | Spotted B-86 Titan 15611 | -3/Research | Discovered new exit (range 22) 15853 | -3/Research | Identified exit to Garrison 15854 | -3/Research | Entered Garrison 15868 | -3/Garrison | Triggered checkpoint 15879 | -3/Garrison | Garrison Relay disabled 16028 | -3/Garrison | Spotted B-86 Titan 16068 | -3/Garrison | Triggered checkpoint 16072 | -3/Garrison | Triggered checkpoint 16298 | -3/Garrison | Lost 3 parts (2u1w) 16532 | -3/Garrison | Lost 4 parts (2u2w) 16544 | -3/Garrison | System corruption reached 10% 16595 | -3/Garrison | Lost 3 parts (1p2w) 16669 | -3/Garrison | Garrison Relay disabled 16712 | -3/Garrison | Triggered checkpoint 16726 | -3/Garrison | Discovered new exit (range 12) 16726 | -3/Garrison | Discovered new exit (range 45) 16726 | -3/Garrison | Discovered new exit (range 61) 16726 | -3/Garrison | Discovered new exit (range 73) 16764 | -3/Garrison | Expanded RIF knowledge: Structural Interface 16786 | -3/Garrison | Spotted B-86 Titan 16833 | -3/Garrison | Entered Research 16833 | -2/Research | Evolved 2 slots: Propulsion x1, Utility x1 17096 | -2/Research | Build established: Botlord-Mutant 17319 | -2/Research | System corruption reached 10% 17649 | -2/Research | Lost 3 allies 17747 | -2/Research | Build established: Bothacker-Mutant 17752 | -2/Research | Identified exit to Access 17765 | -2/Research | Found Prototype Launcher 17765 | -2/Research | Identified Enh. Gamma Bomb Array 17820 | -2/Research | Spotted B-90 Cyclops 17977 | -2/Research | Discovered new exit (range 14) 17989 | -2/Research | Entered Testing 18023 | -2/Testing | Found Prototype Hackware 18023 | -2/Testing | Identified Ghost Barrier 18237 | -2/Testing | Spotted Fortress 18283 | -2/Testing | Discovered new exit (range 6) 18283 | -2/Testing | Discovered new exit (range 6) 18287 | -2/Testing | Entered Protoforge 18303 | -2/Protoforge | Spotted Hotshot 18303 | -2/Protoforge | Spotted Hotshot 18303 | -2/Protoforge | Spotted Hotshot 18303 | -2/Protoforge | Spotted Hotshot 18303 | -2/Protoforge | Superfortress began startup sequence 18365 | -2/Protoforge | Spotted Hotshot 18365 | -2/Protoforge | Spotted Hotshot 18366 | -2/Protoforge | Spotted Hotshot 18366 | -2/Protoforge | Spotted Hotshot 18368 | -2/Protoforge | Spotted Hotshot 18417 | -2/Protoforge | Spotted AP7-3 18418 | -2/Protoforge | Spotted AP7-3 18423 | -2/Protoforge | Spotted Overlord 18462 | -2/Protoforge | Spotted Decapitator 18463 | -2/Protoforge | Spotted EXE-6 18466 | -2/Protoforge | Lost 4 parts (1p1u2w) 18466 | -2/Protoforge | Spotted Decapitator 18470 | -2/Protoforge | Spotted EXE-6 18517 | -2/Protoforge | Spotted EXE-6 18519 | -2/Protoforge | Spotted EXE-6 18529 | -2/Protoforge | Core integrity fell below 50% 18558 | -2/Protoforge | Core integrity fell below 20% 18563 | -2/Protoforge | Lost 9 parts (1p2n4u2w) 18599 | -2/Protoforge | Destroyed by Superfortress with Concept Helical Railcannon Last Messages --------------- 18565_ Treaded Armored-Cooled Exoskeleton core remains intact and functional. 18565_ Penetrated by Slug. 18572_ Slug penetrates Reinforced Barrier. 18573_ System corrupted: Heat flow error (+184). 18579_ Enh. Optical Array severed. 18583_ Adv. Hacking Suite destroyed. 18589_ Penetrated by Railslug. 18589_ Railslug penetrates Decapitator. 18589_ Decapitator suffers critical hit (Destroy). 18589_ Decapitator destroyed. 18593_ Penetrated by Plasma Slug. 18593_ Railslug penetrates Wall. 18596_ Penetrated by Plasma Slug. 18596_ Machine disabled. 18596_ Penetrated by Railslug. 18599_ Plasma Slug penetrates Reinforced Barrier. 18599_ Penetrated by Railslug. Map ----- +----------------------------------------------------+ | ?????????????????????????????????????????????????? | | ?????????????????????????????????????????????????? | | ?????????????????????????????????????????????????? | | ?????????????????????????????????????????????????? | | ?????????????????????????????????????????????????? | | ?????????????????????????????????????????????????? | | ?????????????????????????????????????????????????? | | ?????????????????????????????????????????????????? | | ?????????????????????????????????????????????????? | | ?????????????????????????????????????????????????? | | ?????????????????????????????????????????????????? | | ?????????????????????????????????????????????????? | | ?????????????????????????????????????????????????? | | ?????????????????????????????????????????????????? | | ?????????????????????????????????????????????????? | | ????????????????????????????##???????????????????? | | ????????????? #############;###?????????????????? | | ??????????????? ??????????????????? | | ???????????????? ???????????????????? | | ????????????????? ???????????????????? | | ??????????????????# ;????????????????????? | | ??????????????????# #????????????????????? | | ??????????????????# #????????????????????? | | ??????????????????# #????????????????????? | | ??????????????????# % #????????????????????? | | ???????????????????# @ #?????????????????????? | | ???????????????????# #?????????????????????? | | ?????????????????### #########?????????????? | | ???????????????""""" """"""""#?????????????? | | ???????????????""" c " "" #?????????????? | | ?????????????? "" " #???######???## | | ?????????????? T" "" #???#""""#???#" | | ????????????? c ##### [[[#####/ | | ???????????? % | | ???????????? FFF % =! | | ???????????? FFF *%! | | ????????????? FFF / | | ????????????? | | ?????????????? | | ?????????????? #####[[[["""## | | ???????????????""""""""""""""""""""#???#""""#####" | | ??????????????????"""""""""""""""""#???######???## | | ????????????????????????"""""""""""#?????????????? | | ???????????????????????????????####??????????????? | | ?????????????????????????????????????????????????? | | ?????????????????????????????????????????????????? | | ?????????????????????????????????????????????????? | | ???????????????????????########################### | | ???????????????????????# | | ???????????????????????# "" "" " | +----------------------------------------------------+ Best States ------------- Heat Dissipation 84 Energy Generation 50 Energy Capacity 586 Matter Stores 300 Matter Capacity 300 Sight Range 22 Terrain Scan Density 10 Additional Mass Support 12 Armor Coverage 450 Resistance: TH 25 Core Shielding 30 Power Shielding 66 Weapon Shielding 33 Phase Shifting 10 Evasion (%) 69 Targeting Accuracy 12 Recoil Reduction 6 Offensive Hacking 24 Defensive Hacking 20 Relay Coupler Types 3 Relay Coupler Value 75 Item Schematics ----------------- Imp. Sensor Array | -8/Recycling | Hacked Hrd. Medium Armor Plating | -8/Recycling | Hacked Mic. Nuclear Core | -8/Recycling | Hacked Robot Schematics ------------------ None Fabricated ------------ A-15 Conveyor | x1 | -6/Factory | Preloaded Repaired ---------- Nothing Studied --------- Lgt. Treads | -9/Materials | Hacked Spear | -6/Factory | Hacked Imp. Remote Datajack | -4/Factory | Hacked Imp. Heavy Treads | -4/Factory | Hacked Imp. Plasma Cutter | -4/Factory | Hacked Great Axe | -4/Factory | Hacked Alien Tech Used ----------------- None Achievements -------------- Satisfying Challenges ------------ None Game ------ Seed ActuatorWeaponsChaingun Manual? 0 Play Time 02:41:35 Cumulative 224.7 hours Start 2026.09.08 @ 09:25:06 End 2026.09.08 @ 12:09:14 Sessions 1 Manual Loads 0 Difficulty Rogue Special Mode None Game No. 334 Rogue 334 Adventurer 0 Explorer 0 Win Type - Total 1 Types 1/0/0/0/0/0/0/0/0/0 Lore% 68 Gallery% 62 Achievement% 47 Wizard Run 0 Options --------- Layout 1 ASCII 0 Keyboard 1 Movement Arrows Keybinds 0 Fullscreen 1 Font 24/Smallcaps Map View 50x35 Zoom Use 0% Tactical HUD 1 Map Filters NONE Filters NONE Steam 1 RUN: e62b5dab-9495-473f-904d-ff892bb99fa7